[Event "*** Titled Tuesday 3|2 Blitz (Early)"]
[Site "Chess.com"]
[Date "2017.01.03"]
[Round "8"]
[White "Rating-Schmating"]
[Black "RamonManon0g"]
[Result "1-0"]
[WhiteElo "2283"]
[BlackElo "2266"]
[TimeControl "180+2"]
[EndTime "12:42:43 PST"]
[Termination "Rating-Schmating won by resignation"]

1. e4 {[%clk 0:03:01.9]} 1... c5 {[%clk 0:03:01]} 2. Nf3 {[%clk 0:03:02.6]} 2...
d6 {[%clk 0:03:02.3]} 3. d4 {[%clk 0:03:02.2]} 3... cxd4 {[%clk 0:03:04.2]} 4.
Nxd4 {[%clk 0:03:02.6]} 4... Nf6 {[%clk 0:03:05.3]} 5. Nc3 {[%clk 0:03:03.6]}
5... a6 {[%clk 0:03:06.9]} 6. h3 {[%clk 0:03:04.9]} 6... e5 {[%clk 0:03:07.2]}
7. Nde2 {[%clk 0:03:05.7]} 7... h5 {[%clk 0:03:08.3]} 8. g3 {[%clk 0:03:06.3]}
8... Be7 {[%clk 0:03:09.7]} 9. Bg2 {[%clk 0:03:07.3]} 9... Be6 {[%clk
0:03:11.1]} 10. Be3 {[%clk 0:03:08.3]} 10... Nbd7 {[%clk 0:03:12.4]} 11. a4
{[%clk 0:03:08.8]} 11... O-O {[%clk 0:03:13.5]} 12. O-O {[%clk 0:03:09.4]} 12...
Rc8 {[%clk 0:03:14.8]} 13. Nd5 {[%clk 0:03:10]} 13... Nxd5 {[%clk 0:03:12.8]}
14. exd5 {[%clk 0:03:11]} 14... Bf5 {[%clk 0:03:14.1]} 15. Nc3 {[%clk
0:03:09.9]} 15... Bg5 {[%clk 0:03:13.4]} 16. Qxh5 {[%clk 0:03:06.2]} 16... Bxe3
{[%clk 0:03:08.8]} 17. Qxf5 {[%clk 0:03:05.1]} 17... Bd4 {[%clk 0:03:08.6]} 18.
Qd3 {[%clk 0:03:03.8]} 18... Bxc3 {[%clk 0:03:06.8]} 19. bxc3 {[%clk 0:03:04.6]}
19... Qa5 {[%clk 0:03:01.8]} 20. c4 {[%clk 0:03:03]} 20... Qc5 {[%clk
0:02:57.3]} 21. Rfb1 {[%clk 0:03:01.9]} 21... b6 {[%clk 0:02:57.2]} 22. Bf1
{[%clk 0:03:01.9]} 22... f5 {[%clk 0:02:57.1]} 23. Qe3 {[%clk 0:03:00.6]} 23...
Qc7 {[%clk 0:02:50.5]} 24. Kh2 {[%clk 0:02:56.4]} 24... f4 {[%clk 0:02:51]} 25.
gxf4 {[%clk 0:02:55]} 25... exf4 {[%clk 0:02:50.8]} 26. Qe6+ {[%clk 0:02:55.2]}
26... Kh8 {[%clk 0:02:51.9]} 27. Bd3 {[%clk 0:02:55.9]} 27... Ne5 {[%clk
0:02:48.9]} 28. a5 {[%clk 0:02:30.3]} 28... Rf6 {[%clk 0:02:45.5]} 29. axb6
{[%clk 0:02:27.6]} 29... Qb8 {[%clk 0:02:45.5]} 30. Qe7 {[%clk 0:02:20.6]} 30...
Re8 {[%clk 0:02:11.5]} 31. Qc7 {[%clk 0:02:15.7]} 31... Nf3+ {[%clk 0:01:48.2]}
32. Kg2 {[%clk 0:02:13.7]} 32... Nh4+ {[%clk 0:01:48.8]} 33. Kh2 {[%clk
0:02:11.8]} 33... Nf3+ {[%clk 0:01:49.1]} 34. Kg2 {[%clk 0:02:11.8]} 34... Nh4+
{[%clk 0:01:49.9]} 35. Kf1 {[%clk 0:02:12.9]} 35... Nf3 {[%clk 0:01:38]} 36.
Qxb8 {[%clk 0:02:06.1]} 36... Nd2+ {[%clk 0:01:32.1]} 37. Kg2 {[%clk 0:02:04.8]}
37... Rxb8 {[%clk 0:01:23.6]} 38. Rb2 {[%clk 0:02:01.2]} 38... f3+ {[%clk
0:01:10.2]} 39. Kh2 {[%clk 0:02:00.6]} 39... Rf4 {[%clk 0:01:10]} 40. Rxa6
{[%clk 0:01:57]} 40... Nxc4 {[%clk 0:00:49.6]} 41. Bxc4 {[%clk 0:01:52.7]} 41...
Rxc4 {[%clk 0:00:51.5]} 42. b7 {[%clk 0:01:54.1]} 1-0

[Event "*** Titled Tuesday 3|2 Blitz (Early)"]
[Site "Chess.com"]
[Date "2017.01.03"]
[Round "8"]
[White "rubhani"]
[Black "Pierrebl"]
[Result "1-0"]
[WhiteElo "2422"]
[BlackElo "2469"]
[TimeControl "180+2"]
[EndTime "12:42:58 PST"]
[Termination "rubhani won on time"]

1. e4 {[%clk 0:03:02]} 1... c5 {[%clk 0:03:02]} 2. Ne2 {[%clk 0:03:02.5]} 2...
Nc6 {[%clk 0:03:03.4]} 3. d4 {[%clk 0:03:01.3]} 3... cxd4 {[%clk 0:03:05.3]} 4.
Nxd4 {[%clk 0:03:01.6]} 4... Nf6 {[%clk 0:03:07.2]} 5. Nc3 {[%clk 0:03:02]} 5...
e5 {[%clk 0:03:06.8]} 6. Ndb5 {[%clk 0:03:01]} 6... d6 {[%clk 0:03:08.2]} 7. Bg5
{[%clk 0:03:01.3]} 7... a6 {[%clk 0:03:09.7]} 8. Na3 {[%clk 0:03:02.5]} 8... b5
{[%clk 0:03:11.6]} 9. Nd5 {[%clk 0:03:03.6]} 9... Be7 {[%clk 0:03:12.8]} 10.
Bxf6 {[%clk 0:03:04.4]} 10... Bxf6 {[%clk 0:03:14.7]} 11. c3 {[%clk 0:03:04.9]}
11... Bg5 {[%clk 0:03:12.5]} 12. Nc2 {[%clk 0:03:06.1]} 12... Ne7 {[%clk
0:03:13.6]} 13. a4 {[%clk 0:03:05.5]} 13... bxa4 {[%clk 0:03:15.5]} 14. Bc4
{[%clk 0:03:04.1]} 14... O-O {[%clk 0:03:08.1]} 15. Rxa4 {[%clk 0:03:01.6]}
15... a5 {[%clk 0:03:02.1]} 16. O-O {[%clk 0:03:01.8]} 16... Bd7 {[%clk
0:02:58.4]} 17. Ra3 {[%clk 0:02:59.8]} 17... Be6 {[%clk 0:02:58.1]} 18. b4
{[%clk 0:02:51.4]} 18... Rc8 {[%clk 0:02:28.5]} 19. Nxe7+ {[%clk 0:02:46.9]}
19... Qxe7 {[%clk 0:02:25.7]} 20. Bxe6 {[%clk 0:02:47.1]} 20... fxe6 {[%clk
0:02:21.7]} 21. bxa5 {[%clk 0:02:44.8]} 21... Rc4 {[%clk 0:02:11.5]} 22. Qd3
{[%clk 0:02:41.4]} 22... Qc7 {[%clk 0:02:03.4]} 23. a6 {[%clk 0:02:38.3]} 23...
Ra8 {[%clk 0:02:03.6]} 24. Rb1 {[%clk 0:02:37]} 24... h6 {[%clk 0:01:55]} 25. g3
{[%clk 0:02:35.5]} 25... Kh7 {[%clk 0:01:51.6]} 26. Rb7 {[%clk 0:02:31]} 26...
Qc6 {[%clk 0:01:50.1]} 27. Nb4 {[%clk 0:02:16.9]} 27... Qc5 {[%clk 0:01:22.3]}
28. Qf3 {[%clk 0:02:16.6]} 28... Kh8 {[%clk 0:00:53]} 29. a7 {[%clk 0:02:10.2]}
29... Qc8 {[%clk 0:00:53.2]} 30. Qf7 {[%clk 0:01:54.3]} 30... Bf6 {[%clk
0:00:53.8]} 31. Na6 {[%clk 0:01:50.3]} 31... Kh7 {[%clk 0:00:44.6]} 32. Rb8
{[%clk 0:01:47]} 1-0

[Event "*** Titled Tuesday 3|2 Blitz (Early)"]
[Site "Chess.com"]
[Date "2017.01.03"]
[Round "8"]
[White "162a54f5d"]
[Black "FearlessKing64"]
[Result "1-0"]
[WhiteElo "2387"]
[BlackElo "2071"]
[TimeControl "180+2"]
[EndTime "12:43:12 PST"]
[Termination "162a54f5d won by resignation"]

1. d4 {[%clk 0:03:02]} 1... Nf6 {[%clk 0:02:58.3]} 2. c4 {[%clk 0:03:02.8]} 2...
g6 {[%clk 0:02:59.7]} 3. g3 {[%clk 0:03:03.3]} 3... c6 {[%clk 0:02:59.4]} 4. Bg2
{[%clk 0:02:56.8]} 4... d5 {[%clk 0:02:47.3]} 5. Nf3 {[%clk 0:02:56.4]} 5... Ne4
{[%clk 0:02:47.6]} 6. b3 {[%clk 0:02:55.7]} 6... Bg7 {[%clk 0:02:48.2]} 7. O-O
{[%clk 0:02:55.1]} 7... O-O {[%clk 0:02:48.1]} 8. Bb2 {[%clk 0:02:51]} 8... dxc4
{[%clk 0:02:48]} 9. Qc2 {[%clk 0:02:46]} 9... Bf5 {[%clk 0:02:45.5]} 10. g4
{[%clk 0:02:44.1]} 10... c3 {[%clk 0:02:35.1]} 11. Bc1 {[%clk 0:02:05.7]} 11...
Ng3 {[%clk 0:01:58.2]} 12. gxf5 {[%clk 0:02:06.6]} 12... Nxf1 {[%clk 0:01:59.5]}
13. Kxf1 {[%clk 0:01:58.5]} 13... c5 {[%clk 0:01:54.2]} 14. Nxc3 {[%clk
0:01:51.5]} 14... cxd4 {[%clk 0:01:52.8]} 15. f6 {[%clk 0:01:47.8]} 15... exf6
{[%clk 0:01:41.2]} 16. Na4 {[%clk 0:01:48.6]} 16... Nc6 {[%clk 0:01:34.2]} 17.
Ba3 {[%clk 0:01:48.7]} 17... Re8 {[%clk 0:01:32.7]} 18. Rd1 {[%clk 0:01:49.8]}
18... f5 {[%clk 0:01:32.7]} 19. Nc5 {[%clk 0:01:49.9]} 19... b6 {[%clk 0:00:54]}
20. Nd3 {[%clk 0:01:50.1]} 20... Rc8 {[%clk 0:00:52.9]} 21. Qd2 {[%clk
0:01:49.9]} 21... Qd7 {[%clk 0:00:47.2]} 22. Nb2 {[%clk 0:01:41.4]} 22... Re4
{[%clk 0:00:24.1]} 23. Nc4 {[%clk 0:01:38.3]} 23... Rce8 {[%clk 0:00:24]} 24.
Re1 {[%clk 0:01:30]} 24... b5 {[%clk 0:00:17.6]} 25. Nd6 {[%clk 0:01:30.6]}
25... b4 {[%clk 0:00:12.5]} 26. Nxe8 {[%clk 0:01:31.7]} 26... Qxe8 {[%clk
0:00:13]} 27. Bxb4 {[%clk 0:01:31.6]} 27... Nxb4 {[%clk 0:00:12.9]} 28. Qxb4
{[%clk 0:01:33.5]} 28... Bf8 {[%clk 0:00:14.4]} 29. Qd2 {[%clk 0:01:34.1]} 29...
Qd8 {[%clk 0:00:11.3]} 30. Rd1 {[%clk 0:01:34.4]} 30... Bg7 {[%clk 0:00:10.6]}
31. Ne1 {[%clk 0:01:33.8]} 31... Re7 {[%clk 0:00:09.8]} 32. Nc2 {[%clk
0:01:34.8]} 32... Rd7 {[%clk 0:00:10.8]} 33. Nb4 {[%clk 0:01:36.2]} 33... a5
{[%clk 0:00:11.5]} 34. Nc6 {[%clk 0:01:37.1]} 34... Qb6 {[%clk 0:00:12.8]} 35.
Qxa5 {[%clk 0:01:35.1]} 35... Qxc6 {[%clk 0:00:13.3]} 36. Bxc6 {[%clk
0:01:35.1]} 1-0

[Event "*** Titled Tuesday 3|2 Blitz (Early)"]
[Site "Chess.com"]
[Date "2017.01.03"]
[Round "8"]
[White "sandropozo"]
[Black "Alexander_Moskalenko"]
[Result "0-1"]
[WhiteElo "2425"]
[BlackElo "2669"]
[TimeControl "180+2"]
[EndTime "12:43:41 PST"]
[Termination "Alexander_Moskalenko won on time"]

1. d4 {[%clk 0:03:02]} 1... e6 {[%clk 0:03:02]} 2. Nf3 {[%clk 0:03:00.4]} 2...
Nf6 {[%clk 0:02:54.9]} 3. c4 {[%clk 0:02:58.4]} 3... d5 {[%clk 0:02:54]} 4. Nc3
{[%clk 0:02:56.2]} 4... Nbd7 {[%clk 0:02:52.9]} 5. g3 {[%clk 0:02:53]} 5... c6
{[%clk 0:02:48.6]} 6. Bg2 {[%clk 0:02:52.4]} 6... dxc4 {[%clk 0:02:47.6]} 7. O-O
{[%clk 0:02:47.2]} 7... Be7 {[%clk 0:02:44.5]} 8. a4 {[%clk 0:02:35.4]} 8... O-O
{[%clk 0:02:45.1]} 9. e4 {[%clk 0:02:36.4]} 9... e5 {[%clk 0:02:42.7]} 10. dxe5
{[%clk 0:02:32.7]} 10... Ng4 {[%clk 0:02:43.9]} 11. Bf4 {[%clk 0:02:26.4]} 11...
Qa5 {[%clk 0:02:42.5]} 12. Qe2 {[%clk 0:01:52.7]} 12... Ndxe5 {[%clk 0:02:42]}
13. Nxe5 {[%clk 0:01:47.9]} 13... Nxe5 {[%clk 0:02:43.9]} 14. Bxe5 {[%clk
0:01:48.5]} 14... Qxe5 {[%clk 0:02:44.3]} 15. Qxc4 {[%clk 0:01:30.5]} 15... Be6
{[%clk 0:02:45.1]} 16. Qe2 {[%clk 0:01:30.2]} 16... Rfd8 {[%clk 0:02:46]} 17.
Kh1 {[%clk 0:01:25.7]} 17... a5 {[%clk 0:02:41]} 18. f4 {[%clk 0:01:23.2]} 18...
Qc5 {[%clk 0:02:42.2]} 19. Rfd1 {[%clk 0:01:00.3]} 19... f6 {[%clk 0:02:43.4]}
20. Rxd8+ {[%clk 0:00:41.3]} 20... Rxd8 {[%clk 0:02:45.3]} 21. Rd1 {[%clk
0:00:42]} 21... Qb4 {[%clk 0:02:34]} 22. Rxd8+ {[%clk 0:00:38.3]} 22... Bxd8
{[%clk 0:02:35.9]} 23. f5 {[%clk 0:00:28.6]} 23... Bf7 {[%clk 0:02:35.5]} 24. e5
{[%clk 0:00:29.8]} 24... fxe5 {[%clk 0:02:29.5]} 25. Qxe5 {[%clk 0:00:30.7]}
25... Qxb2 {[%clk 0:02:24.2]} 26. h4 {[%clk 0:00:27.1]} 26... Qb4 {[%clk
0:02:24.9]} 27. Ne4 {[%clk 0:00:22.4]} 27... Qe7 {[%clk 0:02:26]} 28. Qb8 {[%clk
0:00:21.1]} 28... Qc7 {[%clk 0:02:27]} 29. Qa8 {[%clk 0:00:20.3]} 29... Bd5
{[%clk 0:02:15.3]} 30. Ng5 {[%clk 0:00:21.2]} 30... Bb3 {[%clk 0:01:56.1]} 31.
Kh2 {[%clk 0:00:21.9]} 31... h6 {[%clk 0:01:52.3]} 32. Ne4 {[%clk 0:00:19.2]}
32... Bd5 {[%clk 0:01:38.2]} 33. Nc5 {[%clk 0:00:19.9]} 33... Kf7 {[%clk
0:01:38.6]} 34. Bxd5+ {[%clk 0:00:15.8]} 34... cxd5 {[%clk 0:01:40.5]} 35. Ne6
{[%clk 0:00:15]} 35... Qc2+ {[%clk 0:01:41.6]} 36. Kh1 {[%clk 0:00:11.8]} 36...
Qe4+ {[%clk 0:01:40.2]} 37. Kh2 {[%clk 0:00:12.4]} 37... Qe2+ {[%clk 0:01:37.8]}
38. Kh3 {[%clk 0:00:12.2]} 38... Qf1+ {[%clk 0:01:38.7]} 39. Kh2 {[%clk
0:00:13.4]} 39... Qf2+ {[%clk 0:01:39.9]} 40. Kh3 {[%clk 0:00:14.4]} 40... Qxf5+
{[%clk 0:01:40.8]} 0-1

[Event "*** Titled Tuesday 3|2 Blitz (Early)"]
[Site "Chess.com"]
[Date "2017.01.03"]
[Round "8"]
[White "Frolyanov_D"]
[Black "Gabrielian_Artur"]
[Result "1-0"]
[WhiteElo "2526"]
[BlackElo "2651"]
[TimeControl "180+2"]
[EndTime "12:43:41 PST"]
[Termination "Frolyanov_D won on time"]

1. e4 {[%clk 0:03:02]} 1... c5 {[%clk 0:02:59.4]} 2. Nf3 {[%clk 0:03:00.7]} 2...
d6 {[%clk 0:03:00.7]} 3. d4 {[%clk 0:02:55.5]} 3... cxd4 {[%clk 0:03:01.8]} 4.
Nxd4 {[%clk 0:02:57.4]} 4... Nf6 {[%clk 0:03:02.9]} 5. Nc3 {[%clk 0:02:58.4]}
5... a6 {[%clk 0:03:04.4]} 6. Bg5 {[%clk 0:02:57.7]} 6... Nbd7 {[%clk
0:02:59.3]} 7. f4 {[%clk 0:02:56.2]} 7... Qc7 {[%clk 0:02:49.1]} 8. Qe2 {[%clk
0:02:52.9]} 8... e6 {[%clk 0:02:39.9]} 9. O-O-O {[%clk 0:02:52]} 9... b5 {[%clk
0:02:38.3]} 10. g4 {[%clk 0:02:44.6]} 10... b4 {[%clk 0:02:33]} 11. Nd5 {[%clk
0:02:44.5]} 11... exd5 {[%clk 0:02:30.8]} 12. exd5+ {[%clk 0:02:45.4]} 12... Be7
{[%clk 0:02:28.5]} 13. Nc6 {[%clk 0:02:34.4]} 13... Nb8 {[%clk 0:02:24.3]} 14.
Bxf6 {[%clk 0:02:23]} 14... gxf6 {[%clk 0:02:24.8]} 15. Bg2 {[%clk 0:02:23.7]}
15... Nxc6 {[%clk 0:02:16.3]} 16. dxc6 {[%clk 0:02:25.6]} 16... a5 {[%clk
0:02:17.8]} 17. f5 {[%clk 0:02:18.7]} 17... Ba6 {[%clk 0:02:17.1]} 18. Qe3
{[%clk 0:02:15.2]} 18... O-O-O {[%clk 0:02:10.7]} 19. Bd5 {[%clk 0:02:15.5]}
19... Bf8 {[%clk 0:02:04.9]} 20. Rhe1 {[%clk 0:02:04.3]} 20... h5 {[%clk
0:02:05.5]} 21. Qb3 {[%clk 0:01:39.3]} 21... hxg4 {[%clk 0:02:02.1]} 22. Bxf7
{[%clk 0:01:33.1]} 22... Rxh2 {[%clk 0:01:59.5]} 23. Bd5 {[%clk 0:01:31.8]}
23... Bh6+ {[%clk 0:01:46.8]} 24. Kb1 {[%clk 0:01:32]} 24... Bf4 {[%clk
0:01:44.4]} 25. a3 {[%clk 0:01:26.8]} 25... Qb6 {[%clk 0:01:32.7]} 26. Re7
{[%clk 0:01:22.5]} 26... Be5 {[%clk 0:00:28.1]} 27. Be6+ {[%clk 0:01:21.4]}
27... Kb8 {[%clk 0:00:28.7]} 28. Qe3 {[%clk 0:00:57.9]} 28... Bd4 {[%clk
0:00:13.8]} 29. Qxd4 {[%clk 0:00:54.3]} 1-0

[Event "*** Titled Tuesday 3|2 Blitz (Early)"]
[Site "Chess.com"]
[Date "2017.01.03"]
[Round "8"]
[White "gmsakk"]
[Black "NewBornNow"]
[Result "0-1"]
[WhiteElo "2467"]
[BlackElo "2578"]
[TimeControl "180+2"]
[EndTime "12:43:48 PST"]
[Termination "NewBornNow won by resignation"]

1. d4 {[%clk 0:03:02]} 1... Nf6 {[%clk 0:02:59.8]} 2. Bg5 {[%clk 0:03:02.3]}
2... Ne4 {[%clk 0:02:58.5]} 3. Bf4 {[%clk 0:03:03.4]} 3... c5 {[%clk 0:02:58]}
4. f3 {[%clk 0:03:04]} 4... Qa5+ {[%clk 0:02:53.1]} 5. c3 {[%clk 0:03:05]} 5...
Nf6 {[%clk 0:02:52.9]} 6. Nd2 {[%clk 0:03:06.5]} 6... cxd4 {[%clk 0:02:52.6]} 7.
Nb3 {[%clk 0:03:07.7]} 7... Qb6 {[%clk 0:02:53]} 8. Qxd4 {[%clk 0:03:08]} 8...
Qxd4 {[%clk 0:02:51.5]} 9. cxd4 {[%clk 0:03:08]} 9... d5 {[%clk 0:02:49.8]} 10.
e3 {[%clk 0:03:07]} 10... a6 {[%clk 0:02:47]} 11. Bd3 {[%clk 0:02:58.3]} 11...
Nc6 {[%clk 0:02:46.7]} 12. Rc1 {[%clk 0:02:58.7]} 12... e6 {[%clk 0:02:40.5]}
13. Kf2 {[%clk 0:02:58]} 13... Be7 {[%clk 0:02:18]} 14. g4 {[%clk 0:02:58.7]}
14... Nd7 {[%clk 0:02:11.9]} 15. Ne2 {[%clk 0:02:58.2]} 15... g5 {[%clk
0:02:08.5]} 16. Bg3 {[%clk 0:02:54.3]} 16... h5 {[%clk 0:02:09.3]} 17. h3 {[%clk
0:02:20]} 17... h4 {[%clk 0:01:58.1]} 18. Bc7 {[%clk 0:02:16.8]} 18... Bd8
{[%clk 0:01:55.9]} 19. Bxd8 {[%clk 0:02:16.2]} 19... Kxd8 {[%clk 0:01:55]} 20.
f4 {[%clk 0:02:13.7]} 20... f6 {[%clk 0:01:51.5]} 21. Ng1 {[%clk 0:02:10.2]}
21... e5 {[%clk 0:01:44.7]} 22. Bf5 {[%clk 0:02:06.1]} 22... gxf4 {[%clk
0:01:26.6]} 23. exf4 {[%clk 0:01:22.6]} 23... e4 {[%clk 0:01:18.7]} 24. Bxd7
{[%clk 0:01:21.3]} 24... Bxd7 {[%clk 0:01:18.7]} 25. a3 {[%clk 0:01:21.3]} 25...
a5 {[%clk 0:01:15.8]} 26. f5 {[%clk 0:01:16.2]} 26... a4 {[%clk 0:01:13.4]} 27.
Nc5 {[%clk 0:01:14.5]} 27... b6 {[%clk 0:01:03.7]} 28. Nxd7 {[%clk 0:01:13.1]}
28... Kxd7 {[%clk 0:01:04.3]} 29. Ne2 {[%clk 0:01:13.8]} 29... Kd6 {[%clk
0:01:02.1]} 30. Ke3 {[%clk 0:01:11.5]} 30... Na5 {[%clk 0:01:01.4]} 31. Nf4
{[%clk 0:01:04]} 31... Rhc8 {[%clk 0:00:57.4]} 32. Ng6 {[%clk 0:01:01.8]} 32...
Nc4+ {[%clk 0:00:54.2]} 33. Rxc4 {[%clk 0:00:54.7]} 33... Rxc4 {[%clk
0:00:54.5]} 34. Nxh4 {[%clk 0:00:55.8]} 34... Ra5 {[%clk 0:00:53.3]} 35. Kf4
{[%clk 0:00:38]} 35... Rb5 {[%clk 0:00:51.5]} 0-1

[Event "*** Titled Tuesday 3|2 Blitz (Early)"]
[Site "Chess.com"]
[Date "2017.01.03"]
[Round "8"]
[White "Divertissement"]
[Black "Chopper1905"]
[Result "0-1"]
[WhiteElo "2456"]
[BlackElo "2607"]
[TimeControl "180+2"]
[EndTime "12:43:51 PST"]
[Termination "Chopper1905 won by resignation"]

1. c4 {[%clk 0:03:02]} 1... e6 {[%clk 0:02:52.1]} 2. Nc3 {[%clk 0:03:03.1]} 2...
Nf6 {[%clk 0:02:52.1]} 3. e4 {[%clk 0:03:03.4]} 3... c5 {[%clk 0:02:51.4]} 4.
Nf3 {[%clk 0:03:01.2]} 4... Nc6 {[%clk 0:02:52.1]} 5. Be2 {[%clk 0:02:59.8]}
5... Qc7 {[%clk 0:02:52.5]} 6. O-O {[%clk 0:03:00.7]} 6... a6 {[%clk 0:02:51.4]}
7. d4 {[%clk 0:03:00.4]} 7... cxd4 {[%clk 0:02:52.5]} 8. Nxd4 {[%clk 0:03:02.3]}
8... Bd6 {[%clk 0:02:52.1]} 9. h3 {[%clk 0:02:41.3]} 9... Bh2+ {[%clk
0:02:50.4]} 10. Kh1 {[%clk 0:02:41.9]} 10... Nxd4 {[%clk 0:02:49.7]} 11. Qxd4
{[%clk 0:02:43.8]} 11... Be5 {[%clk 0:02:50.7]} 12. Qd3 {[%clk 0:02:41.3]} 12...
b6 {[%clk 0:02:28]} 13. f4 {[%clk 0:02:41.4]} 13... Bxc3 {[%clk 0:02:29]} 14.
bxc3 {[%clk 0:02:42.1]} 14... Bb7 {[%clk 0:02:30.1]} 15. Bf3 {[%clk 0:02:17.5]}
15... Rc8 {[%clk 0:02:11.5]} 16. e5 {[%clk 0:02:10.6]} 16... Ng8 {[%clk
0:02:02.3]} 17. f5 {[%clk 0:01:07.8]} 17... Ne7 {[%clk 0:01:55.7]} 18. f6 {[%clk
0:00:59]} 18... gxf6 {[%clk 0:01:56.6]} 19. exf6 {[%clk 0:01:00.3]} 19... Ng6
{[%clk 0:01:38.4]} 20. Bxb7 {[%clk 0:00:50.6]} 20... Qxb7 {[%clk 0:01:38]} 21.
Bh6 {[%clk 0:00:51.4]} 21... Rg8 {[%clk 0:01:19.2]} 22. Rf2 {[%clk 0:00:44.4]}
22... Rc5 {[%clk 0:01:04.2]} 23. Bg7 {[%clk 0:00:41.5]} 23... Qc6 {[%clk
0:01:01.5]} 24. Qg3 {[%clk 0:00:32.6]} 24... d6 {[%clk 0:00:56.7]} 25. Rd1
{[%clk 0:00:32.8]} 25... Ne5 {[%clk 0:00:44.1]} 26. Rfd2 {[%clk 0:00:32.1]}
26... Nxc4 {[%clk 0:00:44.3]} 27. Rxd6 {[%clk 0:00:11.3]} 27... Nxd6 {[%clk
0:00:44.8]} 28. Rxd6 {[%clk 0:00:13.2]} 28... Qc7 {[%clk 0:00:45.8]} 29. Qd3
{[%clk 0:00:14.8]} 29... Rxc3 {[%clk 0:00:41.7]} 30. Qxh7 {[%clk 0:00:15.8]}
30... Rc1+ {[%clk 0:00:39.5]} 0-1

[Event "*** Titled Tuesday 3|2 Blitz (Early)"]
[Site "Chess.com"]
[Date "2017.01.03"]
[Round "8"]
[White "Feegus"]
[Black "Corpescador"]
[Result "1-0"]
[WhiteElo "2319"]
[BlackElo "2429"]
[TimeControl "180+2"]
[EndTime "12:44:24 PST"]
[Termination "Feegus won by checkmate"]

1. Nf3 {[%clk 0:03:02]} 1... d5 {[%clk 0:02:57.7]} 2. g3 {[%clk 0:03:02.7]} 2...
c6 {[%clk 0:02:58.5]} 3. Bg2 {[%clk 0:03:04.6]} 3... Bg4 {[%clk 0:02:59.4]} 4.
Ne5 {[%clk 0:03:04.8]} 4... Bf5 {[%clk 0:02:59.5]} 5. c4 {[%clk 0:03:06.7]} 5...
e6 {[%clk 0:02:56.7]} 6. cxd5 {[%clk 0:03:05.6]} 6... exd5 {[%clk 0:02:57.6]} 7.
O-O {[%clk 0:03:05.7]} 7... Nf6 {[%clk 0:02:58.6]} 8. d3 {[%clk 0:03:05.4]} 8...
Bc5 {[%clk 0:02:59.1]} 9. e4 {[%clk 0:03:04.2]} 9... Be6 {[%clk 0:02:54.4]} 10.
exd5 {[%clk 0:02:55.7]} 10... Bxd5 {[%clk 0:02:47.3]} 11. Re1 {[%clk 0:02:47.3]}
11... O-O {[%clk 0:02:47]} 12. d4 {[%clk 0:02:44]} 12... Be7 {[%clk 0:02:42.2]}
13. Nc3 {[%clk 0:02:42.7]} 13... Bxg2 {[%clk 0:02:41.5]} 14. Kxg2 {[%clk
0:02:43.5]} 14... Nbd7 {[%clk 0:02:42.1]} 15. Qe2 {[%clk 0:02:40.8]} 15... Re8
{[%clk 0:02:39.6]} 16. Qc4 {[%clk 0:02:41.4]} 16... Rf8 {[%clk 0:02:34.4]} 17.
Qb3 {[%clk 0:02:23.4]} 17... Nb6 {[%clk 0:02:31.5]} 18. Bg5 {[%clk 0:02:17.9]}
18... Rb8 {[%clk 0:02:10.6]} 19. Rad1 {[%clk 0:02:08.8]} 19... Nbd5 {[%clk
0:01:43.4]} 20. Bxf6 {[%clk 0:01:56.2]} 20... Bxf6 {[%clk 0:01:32.7]} 21. Nxd5
{[%clk 0:01:56.8]} 21... cxd5 {[%clk 0:01:33]} 22. Re3 {[%clk 0:01:44.2]} 22...
Qd6 {[%clk 0:01:11.6]} 23. Rde1 {[%clk 0:01:41.8]} 23... h5 {[%clk 0:01:03.8]}
24. h4 {[%clk 0:01:30.7]} 24... g6 {[%clk 0:01:03.4]} 25. Rf3 {[%clk 0:01:29.1]}
25... Kg7 {[%clk 0:00:59.8]} 26. Qe3 {[%clk 0:01:18.7]} 26... Rfe8 {[%clk
0:00:55.7]} 27. Qf4 {[%clk 0:01:07.4]} 27... Re6 {[%clk 0:00:55.7]} 28. Ree3
{[%clk 0:00:29.9]} 28... Rbe8 {[%clk 0:00:54.4]} 29. Qh6+ {[%clk 0:00:26.8]}
29... Kg8 {[%clk 0:00:44]} 30. Nxf7 {[%clk 0:00:22.8]} 30... Bg7 {[%clk
0:00:36.7]} 31. Qxg7+ {[%clk 0:00:19.7]} 31... Kxg7 {[%clk 0:00:36.5]} 32. Nxd6
{[%clk 0:00:21.6]} 32... Rxe3 {[%clk 0:00:36.8]} 33. Rxe3 {[%clk 0:00:22.6]}
33... Rd8 {[%clk 0:00:37.9]} 34. Nxb7 {[%clk 0:00:23.3]} 34... Rd7 {[%clk
0:00:38.1]} 35. Nc5 {[%clk 0:00:24]} 35... Rd6 {[%clk 0:00:39.5]} 36. Re6 {[%clk
0:00:24.5]} 36... Rd8 {[%clk 0:00:39.7]} 37. Re7+ {[%clk 0:00:25.6]} 37... Kf6
{[%clk 0:00:40.7]} 38. Rxa7 {[%clk 0:00:27.5]} 38... Re8 {[%clk 0:00:41.9]} 39.
Nd7+ {[%clk 0:00:27.5]} 39... Kf5 {[%clk 0:00:42.1]} 40. Ne5 {[%clk 0:00:29.4]}
40... Rc8 {[%clk 0:00:41.8]} 41. Rf7+ {[%clk 0:00:22]} 41... Ke4 {[%clk
0:00:42.1]} 42. Rf4# {[%clk 0:00:22.5]} 1-0